fUST/lending_fUST_20250806
["ID","MTS","AMOUNT","RATE_DAILY","PERIOD"]
[377463466,1754416560859,190.10481682,0.00026073,2]
[377463467,1754416562272,300.0,0.00026136,2]
[377463468,1754416569170,666.0,0.00025207,2]
[377463469,1754416582245,3041.0917076,0.00025207,2]
[377463470,1754416582267,5000.0,0.00025207,2]
[377463471,1754416582289,5000.0,0.00025207,2]
[377463472,1754416582311,5000.0,0.00025207,2]
[377463473,1754416582336,5000.0,0.00025207,2]
[377463474,1754416582360,1858.9082924,0.00025207,2]
[377463478,1754416594726,1200.0,0.00026136,2]
[377463479,1754416603540,500.0,0.00026136,2]
[377463480,1754416603583,500.0,0.00026136,2]
[377463481,1754416603721,500.0,0.00026136,2]
[377463482,1754416603751,441.0917076,0.00026136,2]
[377463484,1754416608455,600.0,0.000252,2]
[377463490,1754416625649,-300.0,0.00026135,2]
[377463491,1754416625679,-58.9082924,0.00026136,2]
[377463492,1754416625709,-500.0,0.00026136,2]
[377463493,1754416625738,-500.0,0.00026136,2]
[377463494,1754416625769,-500.0,0.00026136,2]
[377463495,1754416625798,-500.0,0.00026136,2]
[377463496,1754416625945,-562.87908484,0.00026136,2]
[377463497,1754416625975,-500.0,0.00026136,2]
[377463498,1754416626009,-500.0,0.00026136,2]
[377463499,1754416626039,-500.0,0.00026136,2]
[377463500,1754416626070,-374.24183032,0.00026136,2]
[377463501,1754416626360,-125.75816968,0.00026136,2]
[377463502,1754416626391,-500.0,0.00026136,2]
[377463503,1754416626420,-500.0,0.00026136,2]
[377463504,1754416626453,-500.0,0.00026136,2]
[377463505,1754416626482,-500.0,0.00026136,2]
[377463506,1754416626511,-248.48366064,0.00026136,2]
[377463507,1754416626636,-251.51633936,0.00026136,2]
[377463508,1754416626664,-500.0,0.00026136,2]
[377463509,1754416638906,645.14613759,0.00026136,2]
[377463510,1754416638938,645.14613759,0.00026136,2]
[377463511,1754416638969,645.14613759,0.00026136,2]
[377463512,1754416638999,645.14613759,0.00026136,2]
[377463513,1754416639030,645.14613759,0.00026136,2]
[377463514,1754416639059,271.23663333,0.00026136,2]
[377463515,1754416639085,373.90950426,0.00026136,2]
[377463516,1754416639211,645.14613759,0.00026136,2]
[377463517,1754416639242,645.14613759,0.00026136,2]
[377463518,1754416639277,645.14613759,0.00026136,2]
[377463519,1754416639306,645.14613759,0.00026136,2]
[377463520,1754416639335,645.14613759,0.00026136,2]
[377463521,1754416639374,645.14613759,0.00026136,2]
[377463522,1754416639403,645.14613759,0.00026136,2]
[377463523,1754416639437,110.06753261,0.00026136,2]
[377463524,1754416639461,535.07860498,0.00026136,2]
[377463525,1754416639492,645.14613759,0.00026136,2]
[377463526,1754416639524,645.14613759,0.00026136,2]
[377463527,1754416639554,645.14613759,0.00026136,2]
[377463528,1754416639584,645.14613759,0.00026136,2]
[377463529,1754416639612,645.14613759,0.00026136,2]
[377463530,1754416639642,645.14613759,0.00026136,2]
[377463531,1754416639675,594.04456948,0.00026136,2]
[377463532,1754416639702,51.10156811,0.00026136,2]
[377463533,1754416639735,645.14613759,0.00026136,2]
[377463534,1754416639766,645.14613759,0.00026136,2]
[377463535,1754416639796,645.14613759,0.00026136,2]
[377463536,1754416639826,645.14613759,0.00026136,2]
[377463537,1754416639854,645.14613759,0.00026136,2]
[377463538,1754416639884,645.14613759,0.00026136,2]
[377463539,1754416639913,645.14613759,0.00026136,2]
[377463540,1754416640064,432.87546876,0.00026136,2]
[377463541,1754416640091,212.27066883,0.00026136,2]
[377463542,1754416640121,645.14613759,0.00026136,2]
[377463543,1754416640153,645.14613759,0.00026136,2]
[377463544,1754416640194,645.14613759,0.00026136,2]
[377463545,1754416640226,645.14613759,0.00026136,2]
[377463546,1754416640254,645.14613759,0.00026136,2]
[377463547,1754416640286,645.14613759,0.00026136,2]
[377463548,1754416640321,645.14613759,0.00026136,2]
[377463549,1754416640357,271.70636804,0.00026136,2]
[377463550,1754416640383,373.43976955,0.00026136,2]
[377463551,1754416640412,645.14613759,0.00026136,2]
[377463552,1754416640444,645.14613759,0.00026136,2]
[377463553,1754416640475,645.14613759,0.00026136,2]
[377463554,1754416640509,645.14613759,0.00026136,2]
[377463555,1754416640539,645.14613759,0.00026136,2]
[377463556,1754416640569,645.14613759,0.00026136,2]
[377463557,1754416640603,645.14613759,0.00026136,2]
[377463558,1754416640632,110.53726732,0.00026136,2]
[377463559,1754416640660,534.60887027,0.00026136,2]
[377463560,1754416640692,645.14613759,0.00026136,2]
[377463561,1754416640721,645.14613759,0.00026136,2]
[377463562,1754416640754,645.14613759,0.00026136,2]
[377463563,1754416640795,645.14613759,0.00026136,2]
[377463564,1754416640828,645.14613759,0.00026136,2]
[377463565,1754416640857,645.14613759,0.00026136,2]
[377463566,1754416640895,594.51430419,0.00026136,2]
[377463570,1754416722743,1702.45352925,0.00025205,5]
[377463585,1754416765326,150.0,0.0002397,2]
[377463603,1754416791614,-300.0,0.0002589,2]
[377463608,1754416802631,300.0,0.0002589,2]
[377463634,1754416832685,257.52,0.000258,2]
[377463636,1754416893356,514.0,0.0002589,2]
[377463637,1754416923086,300.0,0.0002589,2]
[377463638,1754416925279,220.132004,0.0002511,2]
[377463639,1754416949567,455.522125,0.0002511,2]
[377463641,1754416988646,2352.825871,0.00025094,2]
[377463642,1754416988667,5000.0,0.00025094,2]
[377463643,1754416988707,2325.63403,0.00025094,2]
[377463646,1754417071230,-159.12016755,0.0002589,2]
[377463648,1754417136402,160.0,0.0002,3]
[377463649,1754417136667,160.0,0.0002,7]
[377463650,1754417189256,445.355619,0.00013699,2]
[377463651,1754417189453,445.355619,0.00020187,2]
[377463652,1754417194299,-159.12016755,0.0002589,2]
[377463654,1754417209371,1000.0,0.00024947,2]
[377463658,1754417307912,200.0,0.00024926,2]
[377463659,1754417333481,762.01245434,0.00024037,2]
[377463692,1754417431978,-166.42,0.00025723,7]
[377463694,1754417431988,-5783.60216059,0.0002587,2]
[377463696,1754417431997,-506.86097359,0.00025873,2]
[377463698,1754417432006,-500.0,0.00025873,2]
[377463700,1754417432015,-500.0,0.00025873,2]
[377463702,1754417432024,-200.0,0.00025873,2]
[377463704,1754417432034,-538.70728264,0.00025873,2]
[377463706,1754417432043,-262.22034838,0.00025873,2]
[377463708,1754417432052,-1200.0,0.00025879,2]
[377463710,1754417432061,-155.87,0.0002588,10]
[377463712,1754417432070,-300.0,0.00025889,2]
[377463714,1754417432081,-202.219,0.0002589,11]
[377463716,1754417432090,-13293.88811362,0.0002589,2]
[377463719,1754417432107,-2848.37543334,0.0002589,2]
[377463721,1754417432117,-500.0,0.0002589,2]
[377463724,1754417432126,-1651.68379866,0.0002589,2]
[377463726,1754417432141,-467.09929999,0.0002589,2]
[377463727,1754417432152,-19599.77253918,0.0002589,2]
[377463746,1754417437932,-171.06551811,0.00025889,2]
[377463747,1754417437942,-500.0,0.00025889,2]
[377463748,1754417437953,-500.0,0.00025889,2]
[377463749,1754417437963,-520.53274019,0.00025889,2]
[377463750,1754417437973,-240.61370175,0.00025889,2]
[377463751,1754417437982,-249.41364687,0.00025889,2]
[377463752,1754417437992,-520.53274019,0.00025889,2]
[377463753,1754417438002,-500.0,0.00025889,2]
[377463754,1754417438011,-325.99530891,0.00025889,2]
[377463755,1754417438020,-500.0,0.00025889,2]
[377463756,1754417438029,-520.53274019,0.00025889,2]
[377463757,1754417438039,-500.0,0.00025889,2]
[377463758,1754417438049,-520.53274019,0.00025889,2]
[377463759,1754417438058,-500.0,0.00025889,2]
[377463760,1754417438067,-500.0,0.00025889,2]
[377463761,1754417438076,-520.53274019,0.00025889,2]
[377463762,1754417438085,-500.0,0.00025889,2]
[377463763,1754417438095,-520.53274019,0.00025889,2]
[377463764,1754417438105,-500.0,0.00025889,2]
[377463765,1754417438115,-500.0,0.00025889,2]
[377463766,1754417438124,-520.53274019,0.00025889,2]
[377463767,1754417438133,-520.53274019,0.00025889,2]
[377463768,1754417438142,-500.0,0.00025889,2]
[377463769,1754417438152,-500.0,0.00025889,2]
[377463770,1754417438161,-520.53274019,0.00025889,2]
[377463771,1754417438170,-520.53274019,0.00025889,2]
[377463772,1754417438179,-500.0,0.00025889,2]
[377463773,1754417438189,-520.53274019,0.00025889,2]
[377463774,1754417438198,-500.0,0.00025889,2]
[377463775,1754417438207,-520.53274019,0.00025889,2]
[377463776,1754417438216,-520.53274019,0.00025889,2]
[377463777,1754417438226,-553.36185379,0.00025889,2]
[377463778,1754417438235,-520.53274019,0.00025889,2]
[377463779,1754417438245,-520.53274019,0.00025889,2]
[377463780,1754417438254,-520.53274019,0.00025889,2]
[377463781,1754417438263,-520.53274019,0.00025889,2]
[377463782,1754417438273,-520.53274019,0.00025889,2]
[377463783,1754417438282,-520.53274019,0.00025889,2]
[377463784,1754417438291,-520.53274019,0.00025889,2]
[377463785,1754417438300,-520.53274019,0.00025889,2]
[377463786,1754417438310,-520.53274019,0.00025889,2]
[377463787,1754417438320,-520.53274019,0.00025889,2]
[377463788,1754417438330,-520.53274019,0.00025889,2]
[377463789,1754417438341,-520.53274019,0.00025889,2]
[377463790,1754417438350,-520.53274019,0.00025889,2]
[377463791,1754417438360,-520.53274019,0.00025889,2]
[377463792,1754417438369,-520.53274019,0.00025889,2]
[377463793,1754417438379,-520.53274019,0.00025889,2]
[377463794,1754417438388,-520.53274019,0.00025889,2]
[377463795,1754417438398,-520.53274019,0.00025889,2]
[377463796,1754417438408,-520.53274019,0.00025889,2]
[377463797,1754417438417,-520.53274019,0.00025889,2]
[377463798,1754417438427,-520.53274019,0.00025889,2]
[377463799,1754417438437,-520.53274019,0.00025889,2]
[377463800,1754417438447,-520.53274019,0.00025889,2]
[377463801,1754417438456,-520.53274019,0.00025889,2]
[377463802,1754417438477,-520.53274019,0.00025889,2]
[377463803,1754417438489,-520.53274019,0.00025889,2]
[377463804,1754417438499,-520.53274019,0.00025889,2]
[377463805,1754417438511,-520.53274019,0.00025889,2]
[377463806,1754417438522,-520.53274019,0.00025889,2]
[377463807,1754417438532,-520.53274019,0.00025889,2]
[377463808,1754417438542,-520.53274019,0.00025889,2]
[377463809,1754417438553,-520.53274019,0.00025889,2]
[377463810,1754417438563,-520.53274019,0.00025889,2]
[377463811,1754417438574,-520.53274019,0.00025889,2]
[377463812,1754417438584,-520.53274019,0.00025889,2]
[377463813,1754417438595,-520.53274019,0.00025889,2]
[377463814,1754417438605,-520.53274019,0.00025889,2]
[377463815,1754417438615,-520.53274019,0.00025889,2]
[377463816,1754417438624,-520.53274019,0.00025889,2]
[377463817,1754417438634,-520.53274019,0.00025889,2]
[377463818,1754417438647,-520.53274019,0.00025889,2]
[377463819,1754417438657,-520.53274019,0.00025889,2]
[377463820,1754417438666,-500.0,0.00025889,2]
[377463821,1754417438676,-649.72976868,0.00025889,2]
[377463822,1754417438687,-28281.44436217,0.0002589,2]
[377463823,1754417438697,-10535.84663433,0.00025891,2]
[377463824,1754417438707,-779.4,0.00025951,10]
[377463825,1754417438717,-78604.8771091,0.00025962,2]
[377463826,1754417438727,-500.0,0.00025973,2]
[377463827,1754417438737,-504.22581698,0.00025973,2]
[377463828,1754417438747,-500.0,0.00025973,2]
[377463829,1754417438757,-500.0,0.00025973,2]
[377463830,1754417438766,-500.0,0.00025973,2]
[377463831,1754417438776,-500.0,0.00025973,2]
[377463832,1754417438786,-500.0,0.00025973,2]
[377463833,1754417438796,-500.0,0.00025973,2]
[377463834,1754417438806,-500.0,0.00025973,2]
[377463835,1754417438815,-500.0,0.00025973,2]
[377463836,1754417438825,-500.0,0.00025973,2]
[377463837,1754417438835,-500.0,0.00025973,2]
[377463838,1754417438845,-235.79192868,0.00025973,2]
[377463839,1754417438855,-500.0,0.00025973,2]
[377463840,1754417438864,-500.0,0.00025973,2]
[377463841,1754417438874,-500.0,0.00025973,2]
[377463842,1754417438883,-502.13028637,0.00025973,2]
[377463843,1754417438893,-500.0,0.00025973,2]
[377463844,1754417438903,-500.0,0.00025973,2]
[377463845,1754417438912,-159.96240563,0.00025973,2]
[377463846,1754417438922,-500.0,0.00025973,2]
[377463847,1754417438931,-500.0,0.00025973,2]
[377463848,1754417438941,-500.0,0.00025973,2]
[377463849,1754417438951,-320.63276161,0.00025973,2]
[377463850,1754417438961,-500.0,0.00025973,2]
[377463851,1754417438971,-500.0,0.00025973,2]
[377463852,1754417438981,-500.0,0.00025973,2]
[377463853,1754417438991,-622.26759203,0.00025973,2]
[377463854,1754417439000,-500.0,0.00025973,2]
[377463855,1754417439009,-460.42120368,0.00025973,2]
[377463856,1754417439019,-473.56782225,0.00025973,2]
[377463857,1754417439029,-500.0,0.00025973,2]
[377463858,1754417439038,-500.0,0.00025973,2]
[377463859,1754417439048,-501.05503878,0.00025973,2]
[377463860,1754417439058,-500.0,0.00025973,2]
[377463861,1754417439068,-442.19326317,0.00025973,2]
[377463862,1754417439078,-500.0,0.00025973,2]
[377463863,1754417439089,-157209.754218,0.0002598,2]
[377463864,1754417439099,-70412.29266543,0.0002599,2]
[377463865,1754417439108,-367.13414423,0.00026024,2]
[377463866,1754417439116,-3127.09588745,0.00026027,3]
[377463867,1754417439125,-268.0,0.00026111,2]
[377463868,1754417439134,-78604.8771091,0.00026126,2]
[377463869,1754417439143,-151.0,0.00026132,2]
[377463870,1754417439152,-4731.92730034,0.00026136,2]
[377463871,1754417439160,-160.0,0.00026137,2]
[377463872,1754417439169,-3013.422074,0.00026137,2]
[377463873,1754417439179,-78604.8771091,0.00026137,2]
[377463874,1754417439189,-261647.73287576,0.00026147,2]
[377463875,1754417439198,-500.0,0.00026164,2]
[377463876,1754417439208,-500.0,0.00026173,2]
[377463877,1754417439218,-161.48486472,0.00026173,2]
[377463878,1754417439227,-500.0,0.00026173,2]
[377463879,1754417439237,-500.46350979,0.00026173,2]
[377463880,1754417439251,-500.0,0.00026173,2]
[377463881,1754417439261,-500.0,0.00026173,2]
[377463882,1754417439271,-627.6142472,0.00026173,2]
[377463883,1754417439280,-383.05747136,0.00026173,2]
[377463884,1754417439290,-519.17278592,0.00026173,2]
[377463885,1754417439300,-500.0,0.00026173,2]
[377463886,1754417439310,-293.01237011,0.00026173,2]
[377463887,1754417439320,-500.0,0.00026173,2]
[377463888,1754417439330,-500.0,0.00026173,2]
[377463889,1754417439340,-500.0,0.00026173,2]
[377463890,1754417439350,-500.0,0.00026173,2]
[377463891,1754417439361,-500.0,0.00026173,2]
[377463892,1754417439370,-500.0,0.00026173,2]
[377463893,1754417439380,-500.0,0.00026173,2]
[377463894,1754417439390,-500.0,0.00026173,2]
[377463895,1754417439399,-500.0,0.00026173,2]
[377463896,1754417439411,-500.0,0.00026173,2]
[377463897,1754417439420,-500.0,0.00026173,2]
[377463898,1754417439430,-500.0,0.00026173,2]
[377463899,1754417439439,-500.0,0.00026173,2]
[377463900,1754417439449,-250.0,0.00026173,2]
[377463901,1754417439459,-500.0,0.00026173,2]
[377463902,1754417439468,-500.0,0.00026173,2]
[377463903,1754417439478,-500.0,0.00026173,2]
[377463904,1754417439487,-500.0,0.00026173,2]
[377463906,1754417439497,-500.0,0.00026173,2]
[377463907,1754417439506,-500.0,0.00026173,2]
[377463908,1754417439516,-500.0,0.00026273,2]
[377463909,1754417439525,-500.0,0.00026273,2]
[377463910,1754417439535,-500.0,0.00026273,2]
[377463911,1754417439545,-641.65670993,0.00026273,2]
[377463913,1754417439555,-500.0,0.00026273,2]
[377463915,1754417439565,-500.0,0.00026273,2]
[377463917,1754417439575,-367.13414423,0.00026342,2]
[377463919,1754417439584,-375.63818616,0.00026357,2]
[377463922,1754417439595,-1502.55274462,0.000264,2]
[377463924,1754417439604,-500.77354313,0.00026421,2]
[377463926,1754417439614,-166.42,0.00026436,7]
[377463928,1754417439624,-500.0,0.00026438,2]
[377463930,1754417439635,-151.0,0.000265,14]
[377463932,1754417439649,-1000.0,0.00026521,2]
[377463934,1754417439660,-1000.0,0.00026521,2]
[377463936,1754417439669,-500.0,0.00026521,2]
[377463938,1754417439679,-1000.0,0.00026521,2]
[377463940,1754417439690,-1000.0,0.00026521,2]
[377463942,1754417439699,-500.0,0.00026521,2]
[377463944,1754417439709,-1000.0,0.00026521,2]
[377463946,1754417439719,-608.45009166,0.00026521,2]
[377463948,1754417439728,-1000.0,0.00026521,2]
[377463950,1754417439739,-1005.92165578,0.00026521,2]
[377463952,1754417439748,-501.53436114,0.00026521,2]
[377463954,1754417439758,-501.38271662,0.00026521,2]
[377463956,1754417439768,-1000.0,0.00026521,2]
[377463958,1754417439777,-500.0,0.00026521,2]
[377463960,1754417439787,-1000.0,0.00026521,2]
[377463962,1754417439797,-500.0,0.00026521,2]
[377463964,1754417439806,-367.13414423,0.00026661,2]
[377463966,1754417439816,-445.355619,0.00026676,2]
[377463968,1754417439826,-211.09,0.00026703,2]
[377463970,1754417439835,-500.0,0.00026712,2]
[377463973,1754417439846,-1004.30998204,0.00026721,2]
[377463974,1754417439856,-1000.0,0.00026721,2]
[377463975,1754417439866,-334.6626218,0.00026721,2]
[377463976,1754417439876,-500.0,0.00026721,2]
[377463977,1754417439885,-500.0,0.00026721,2]
[377463978,1754417439895,-500.0,0.00026721,2]
[377463979,1754417439904,-1001.65499532,0.00026721,2]
[377463980,1754417439913,-1000.0,0.00026721,2]
[377463981,1754417439922,-500.0,0.00026721,2]
[377463982,1754417439931,-591.87860437,0.00026721,2]
[377463983,1754417439941,-1116.75076089,0.00026721,2]
[377463984,1754417439950,-500.66252856,0.00026721,2]
[377463985,1754417439960,-290.78132231,0.00026721,2]
[377463986,1754417439969,-866.21517508,0.00026721,2]
[377463987,1754417439979,-1000.0,0.00026721,2]
[377463989,1754417439988,-1000.0,0.00026721,2]
[377463990,1754417439997,-500.0,0.00026721,2]
[377463991,1754417440007,-1001.51774952,0.00026721,2]
[377463992,1754417440016,-1000.0,0.00026721,2]
[377463993,1754417440026,-300.0,0.00026742,2]
[377463994,1754417440036,-302.60568207,0.00026742,2]
[377463995,1754417440045,-300.0,0.00026742,2]
[377463997,1754417440055,-300.0,0.00026742,2]
[377463999,1754417440064,-300.0,0.00026742,2]
[377464000,1754417440073,-151.0,0.00026742,2]
[377464002,1754417440082,-300.0,0.00026742,2]
[377464003,1754417440092,-151.0,0.00026742,2]
[377464004,1754417440102,-300.0,0.00026742,2]
[377464005,1754417440111,-22188.54324152,0.00026742,2]
[377464006,1754417440121,-151.0,0.00026742,2]
[377464007,1754417440130,-300.0,0.00026742,2]
[377464008,1754417440140,-300.0,0.00026742,2]
[377464009,1754417440294,-1469.35191301,0.00026742,2]
[377464010,1754417440303,-300.0,0.00026742,2]
[377464011,1754417440313,-151.0,0.00026742,2]
[377464012,1754417440322,-300.0,0.00026742,2]
[377464013,1754417440331,-151.0,0.00026742,2]
[377464014,1754417440341,-300.0,0.00026742,2]
[377464015,1754417440350,-151.0,0.00026742,2]
[377464016,1754417440359,-300.0,0.00026742,2]
[377464017,1754417440368,-151.0,0.00026742,2]
[377464018,1754417440377,-151.0,0.00026742,2]
[377464019,1754417440386,-151.0,0.00026742,2]
[377464020,1754417440396,-151.0,0.00026742,2]
[377464021,1754417440406,-151.0,0.00026742,2]
[377464022,1754417440415,-151.0,0.00026742,2]
[377464023,1754417440426,-151.0,0.00026742,2]
[377464024,1754417440436,-151.0,0.00026742,2]
[377464025,1754417440447,-151.0,0.00026742,2]
[377464026,1754417440456,-151.0,0.00026742,2]
[377464027,1754417440466,-151.0,0.00026742,2]
[377464028,1754417440475,-151.0,0.00026742,2]
[377464029,1754417440484,-151.0,0.00026742,2]
[377464030,1754417440494,-151.0,0.00026742,2]
[377464031,1754417440503,-151.0,0.00026742,2]
[377464032,1754417440513,-151.0,0.00026742,2]
[377464033,1754417440522,-151.0,0.00026742,2]
[377464034,1754417440532,-151.0,0.00026742,2]
[377464035,1754417440543,-151.0,0.00026742,2]
[377464036,1754417440554,-151.0,0.00026742,2]
[377464037,1754417440563,-151.0,0.00026742,2]
[377464038,1754417440572,-151.0,0.00026742,2]
[377464039,1754417440581,-151.0,0.00026742,2]
[377464040,1754417440591,-151.0,0.00026742,2]
[377464041,1754417440600,-151.0,0.00026742,2]
[377464042,1754417440609,-245.346718,0.00026771,2]
[377464043,1754417440619,-151.0,0.000268,13]
[377464044,1754417440629,-504.96812391,0.00026821,2]
[377464045,1754417440640,-1009.11562668,0.00026821,2]
[377464046,1754417440652,-500.65338569,0.00026821,2]
[377464047,1754417440662,-668.61780678,0.00026821,2]
[377464048,1754417440671,-991.8380123,0.00026821,2]
[377464049,1754417440681,-1005.55938349,0.00026821,2]
[377464050,1754417440692,-367.13414423,0.00026979,2]
[377464051,1754417440701,-500.0,0.00026986,2]
[377464052,1754417440711,-12655.02535889,0.00027,3]
[377464053,1754417440721,-12655.02535889,0.00027,3]
[377464054,1754417440731,-160.0,0.00027,3]
[377464055,1754417440741,-160.0,0.00027,3]
[377464056,1754417440750,-215.21874788,0.00027,3]
[377464057,1754417440759,-461.15695721,0.00027,3]
[377464058,1754417440769,-461.15695721,0.00027,3]
[377464059,1754417440779,-160.0,0.00027,3]
[377464060,1754417440788,-160.0,0.00027,3]
[377464061,1754417440798,-231.72586818,0.00027,3]
[377464062,1754417440807,-160.0,0.00027,3]
[377464063,1754417440817,-490.24860948,0.00027029,2]
[377464064,1754417440827,-270.37119316,0.00027068,2]
[377464065,1754417440837,-1581.17943129,0.00027068,2]
[377464066,1754417440848,-612.10818911,0.00027068,2]
[377464067,1754417440857,-1500.0,0.00027068,2]
[377464068,1754417440867,-1500.0,0.00027068,2]
[377464069,1754417440877,-518.26563311,0.00027068,2]
[377464070,1754417440888,-1500.0,0.00027068,2]
[377464071,1754417440898,-495.55245596,0.00027068,2]
[377464072,1754417440909,-166.42,0.00027149,7]
[377464073,1754417440919,-3377.36293173,0.00027172,2]
[377464074,1754417440929,-151.0,0.000272,16]
[377464075,1754417440938,-500.0,0.00027268,2]
[377464076,1754417440950,-1500.0,0.00027268,2]
[377464077,1754417440960,-1500.0,0.00027268,2]
[377464078,1754417440970,-367.13414423,0.00027297,2]
[377464079,1754417440980,-206.91737309,0.00027316,2]
[377464080,1754417440990,-156.681698,0.0002737,20]
[377464081,1754417440999,-500.0,0.00027373,2]
[377464082,1754417441008,-158.64214305,0.00027373,2]
[377464083,1754417441018,-500.0,0.00027373,2]
[377464084,1754417441027,-337.65889,0.00027373,2]
[377464085,1754417441037,-500.0,0.00027373,2]
[377464086,1754417441047,-16142.26354694,0.00027395,2]
[377464087,1754417441056,-460.0,0.00027397,2]
[377464088,1754417441066,-460.0,0.00027397,2]
[377464089,1754417441076,-460.0,0.00027397,2]
[377464090,1754417441085,-460.0,0.00027397,2]
[377464091,1754417441096,-460.0,0.00027397,2]
[377464092,1754417441105,-460.0,0.00027397,2]
[377464093,1754417441114,-460.0,0.00027397,2]
[377464094,1754417441123,-460.0,0.00027397,2]
[377464095,1754417441132,-460.0,0.00027397,2]
[377464096,1754417441142,-498.41889959,0.00027397,2]
[377464097,1754417441151,-460.0,0.00027397,2]
[377464098,1754417441160,-460.0,0.00027397,2]
[377464099,1754417441169,-460.0,0.00027397,2]
[377464100,1754417441178,-460.0,0.00027397,2]
[377464101,1754417441187,-460.0,0.00027397,2]
[377464102,1754417441196,-460.0,0.00027397,2]
[377464103,1754417441206,-463.0993628,0.00027397,2]
[377464104,1754417441214,-500.0,0.00027397,2]
[377464105,1754417441224,-505.99016583,0.00027397,2]
[377464106,1754417441234,-460.0,0.00027397,2]
[377464107,1754417441243,-460.0,0.00027397,2]
[377464108,1754417441252,-460.61825304,0.00027397,2]
[377464109,1754417441262,-460.0,0.00027397,2]
[377464110,1754417441271,-460.0,0.00027397,2]
[377464111,1754417441280,-460.0,0.00027397,2]
[377464112,1754417441291,-460.0,0.00027397,2]
[377464113,1754417441301,-460.0,0.00027397,2]
[377464114,1754417441310,-460.0,0.00027397,2]
[377464115,1754417441319,-460.0,0.00027397,2]
[377464116,1754417441329,-460.0,0.00027397,2]
[377464117,1754417441338,-460.0,0.00027397,2]
[377464118,1754417441347,-460.0,0.00027397,2]
[377464119,1754417441357,-518.21528891,0.00027397,2]
[377464120,1754417441366,-460.0,0.00027397,2]
[377464121,1754417441375,-460.0,0.00027397,2]
[377464122,1754417441385,-461.69851166,0.00027397,2]
[377464123,1754417441394,-192.23019301,0.00027397,2]
[377464124,1754417441403,-460.0,0.00027397,2]
[377464125,1754417441412,-460.0,0.00027397,2]
[377464126,1754417441421,-460.0,0.00027397,2]
[377464127,1754417441430,-460.0,0.00027397,2]
[377464128,1754417441439,-460.0,0.00027397,2]
[377464129,1754417441449,-460.0,0.00027397,2]
[377464130,1754417441458,-460.0,0.00027397,2]
[377464131,1754417441467,-461.53661659,0.00027397,2]
[377464132,1754417441477,-460.0,0.00027397,2]
[377464133,1754417441487,-460.0,0.00027397,2]
[377464134,1754417441496,-460.0,0.00027397,2]
[377464135,1754417441505,-460.0,0.00027397,2]
[377464136,1754417441515,-460.0,0.00027397,2]
[377464137,1754417441524,-501.17451571,0.00027397,2]
[377464138,1754417441534,-460.0,0.00027397,2]
[377464139,1754417441543,-460.0,0.00027397,2]
[377464140,1754417441552,-460.0,0.00027397,2]
[377464141,1754417441561,-460.0,0.00027397,2]
[377464142,1754417441571,-460.0,0.00027397,2]
[377464143,1754417441579,-543.26173374,0.00027397,2]
[377464144,1754417441589,-460.0,0.00027397,2]
[377464145,1754417441599,-460.0,0.00027397,2]
[377464146,1754417441609,-460.0,0.00027397,2]
[377464147,1754417441618,-460.0,0.00027397,2]
[377464148,1754417441627,-460.0,0.00027397,2]
[377464149,1754417441637,-460.0,0.00027397,2]
[377464150,1754417441648,-460.0,0.00027397,2]
[377464151,1754417441658,-500.0,0.00027397,2]